fUST/lending_fUST_20250901
["ID","MTS","AMOUNT","RATE_DAILY","PERIOD"]
[382707391,1756715443517,-480.0,0.00014004,2]
[382707392,1756715443527,-480.0,0.00014004,2]
[382707393,1756715443537,-484.09405176,0.00014004,2]
[382707394,1756715443547,-480.0,0.00014004,2]
[382707395,1756715443558,-480.0,0.00014004,2]
[382707396,1756715443569,-480.0,0.00014004,2]
[382707397,1756715443579,-480.0,0.00014004,2]
[382707398,1756715443590,-480.0,0.00014004,2]
[382707399,1756715443599,-481.15084301,0.00014004,2]
[382707400,1756715443609,-481.88062441,0.00014004,2]
[382707401,1756715443619,-1004.41169497,0.00014004,2]
[382707402,1756715443628,-480.0,0.00014004,2]
[382707403,1756715443638,-480.0,0.00014004,2]
[382707404,1756715443648,-482.32835045,0.00014004,2]
[382707405,1756715443659,-406.80765003,0.00014004,2]
[382707406,1756715443669,-480.0,0.00014004,2]
[382707407,1756715443678,-480.0,0.00014004,2]
[382707408,1756715443687,-480.0,0.00014004,2]
[382707409,1756715443697,-480.0,0.00014004,2]
[382707410,1756715443707,-480.0,0.00014004,2]
[382707411,1756715443717,-480.0,0.00014004,2]
[382707412,1756715443726,-480.0,0.00014004,2]
[382707413,1756715443735,-480.0,0.00014004,2]
[382707414,1756715443745,-480.0,0.00014004,2]
[382707415,1756715443755,-480.0,0.00014004,2]
[382707416,1756715443764,-480.0,0.00014004,2]
[382707417,1756715443775,-151.0,0.00014004,2]
[382707418,1756715443784,-480.0,0.00014004,2]
[382707419,1756715443793,-480.0,0.00014004,2]
[382707420,1756715443803,-480.0,0.00014004,2]
[382707421,1756715443813,-690.31,0.00014004,2]
[382707422,1756715443823,-480.95202241,0.00014004,2]
[382707423,1756715443833,-481.24031827,0.00014004,2]
[382707424,1756715443843,-480.0,0.00014004,2]
[382707425,1756715443852,-481.19986601,0.00014004,2]
[382707426,1756715443862,-688.89,0.00014004,2]
[382707427,1756715443872,-480.0,0.00014004,2]
[382707428,1756715443881,-480.0,0.00014004,2]
[382707429,1756715443892,-480.0,0.00014004,2]
[382707430,1756715443902,-503.54404293,0.00014004,2]
[382707431,1756715443912,-480.0,0.00014004,2]
[382707432,1756715443922,-480.0,0.00014004,2]
[382707433,1756715443933,-480.0,0.00014004,2]
[382707434,1756715443944,-480.0,0.00014004,2]
[382707435,1756715443954,-481.90123479,0.00014004,2]
[382707436,1756715443970,-480.0,0.00014004,2]
[382707437,1756715443980,-480.0,0.00014004,2]
[382707438,1756715443990,-480.0,0.00014004,2]
[382707439,1756715444000,-659.7,0.00014004,2]
[382707440,1756715444011,-480.0,0.00014004,2]
[382707441,1756715444021,-480.0,0.00014004,2]
[382707442,1756715444030,-480.0,0.00014004,2]
[382707443,1756715444040,-480.0,0.00014004,2]
[382707444,1756715444051,-713.66,0.00014004,2]
[382707445,1756715444060,-480.0,0.00014004,2]
[382707446,1756715444070,-480.0,0.00014004,2]
[382707447,1756715444079,-480.0,0.00014004,2]
[382707448,1756715444088,-1270.37,0.00014004,2]
[382707449,1756715444098,-480.0,0.00014004,2]
[382707450,1756715444112,-480.0,0.00014004,2]
[382707451,1756715444122,-480.0,0.00014004,2]
[382707452,1756715444132,-151.0,0.00014004,2]
[382707453,1756715444143,-151.0,0.00014004,2]
[382707454,1756715444153,-480.0,0.00014004,2]
[382707455,1756715444162,-480.0,0.00014004,2]
[382707456,1756715444172,-482.21072514,0.00014004,2]
[382707457,1756715444187,-482.02299581,0.00014004,2]
[382707458,1756715444196,-480.0,0.00014004,2]
[382707459,1756715444207,-480.0,0.00014004,2]
[382707460,1756715444217,-480.0,0.00014004,2]
[382707461,1756715444227,-480.0,0.00014004,2]
[382707462,1756715444236,-486.23,0.00014004,2]
[382707463,1756715444246,-480.0,0.00014004,2]
[382707464,1756715444257,-480.0,0.00014004,2]
[382707465,1756715444266,-480.0,0.00014004,2]
[382707466,1756715444275,-163.117839,0.00014004,2]
[382707467,1756715444284,-480.0,0.00014004,2]
[382707468,1756715444294,-480.0,0.00014004,2]
[382707469,1756715444304,-151.0,0.00014004,2]
[382707470,1756715444313,-793.457697,0.00014004,2]
[382707471,1756715444323,-480.0,0.00014004,2]
[382707472,1756715444332,-500.0,0.00014005,2]
[382707473,1756715444343,-529.23539975,0.00014005,2]
[382707474,1756715444352,-480.0,0.00014005,2]
[382707475,1756715444362,-480.0,0.00014005,2]
[382707476,1756715444372,-480.0,0.00014005,2]
[382707477,1756715444381,-480.0,0.00014005,2]
[382707478,1756715444391,-575.17,0.00014005,2]
[382707479,1756715444401,-637.52,0.00014005,2]
[382707480,1756715444412,-480.0,0.00014005,2]
[382707481,1756715444422,-827.59,0.00014005,2]
[382707482,1756715444575,-480.0,0.00014005,2]
[382707483,1756715444585,-480.0,0.00014005,2]
[382707484,1756715444595,-480.0,0.00014005,2]
[382707485,1756715444605,-480.0,0.00014005,2]
[382707486,1756715444614,-480.0,0.00014005,2]
[382707487,1756715444624,-462.71427781,0.00014005,2]
[382707488,1756715444633,-480.0,0.00014005,2]
[382707489,1756715444643,-480.0,0.00014006,2]
[382707490,1756715444653,-480.0,0.00014006,2]
[382707491,1756715444662,-480.0,0.00014006,2]
[382707492,1756715444672,-480.0,0.00014006,2]
[382707493,1756715444682,-649.94,0.00014006,2]
[382707494,1756715444691,-480.0,0.00014006,2]
[382707495,1756715444701,-610.42,0.00014006,2]
[382707496,1756715444711,-480.0,0.00014006,2]
[382707497,1756715444722,-480.0,0.00014006,2]
[382707498,1756715444732,-500.0,0.00014006,2]
[382707499,1756715444742,-480.0,0.00014006,2]
[382707500,1756715444753,-480.0,0.00014006,2]
[382707501,1756715444762,-480.0,0.00014006,2]
[382707502,1756715444773,-482.53308073,0.00014006,2]
[382707503,1756715444783,-481.64271792,0.00014006,2]
[382707504,1756715444794,-480.0,0.00014006,2]
[382707505,1756715444804,-480.0,0.00014006,2]
[382707506,1756715444814,-480.0,0.00014006,2]
[382707507,1756715444825,-902.41,0.00014006,2]
[382707508,1756715444835,-490.4360983,0.00014006,2]
[382707509,1756715444846,-526.89653165,0.00014006,2]
[382707510,1756715444856,-482.83658517,0.00014006,2]
[382707511,1756715444866,-480.00000001,0.00014006,2]
[382707512,1756715444876,-528.22,0.00014006,2]
[382707513,1756715444886,-480.0,0.00014006,2]
[382707514,1756715444896,-480.0,0.00014006,2]
[382707515,1756715444905,-480.0,0.00014006,2]
[382707516,1756715444915,-480.0,0.00014006,2]
[382707517,1756715444926,-480.0,0.00014006,2]
[382707518,1756715444936,-151.0,0.00014006,2]
[382707519,1756715444946,-513.7,0.00014006,2]
[382707520,1756715444956,-480.0,0.00014006,2]
[382707521,1756715444966,-480.0,0.00014006,2]
[382707522,1756715444976,-151.0,0.00014006,2]
[382707523,1756715444986,-151.0,0.00014006,2]
[382707524,1756715444998,-500.0,0.00014007,2]
[382707525,1756715445008,-793.457697,0.00014007,2]
[382707526,1756715445020,-330.0,0.00014028,2]
[382707527,1756715445031,-3000.0,0.0001404,2]
[382707528,1756715445041,-500.0,0.00014073,2]
[382707529,1756715445051,-500.0,0.00014073,2]
[382707530,1756715445060,-162.32848625,0.00014073,2]
[382707531,1756715445070,-500.0,0.00014073,2]
[382707532,1756715445079,-500.0,0.00014073,2]
[382707533,1756715445090,-500.0,0.00014073,2]
[382707534,1756715445100,-500.0,0.00014073,2]
[382707535,1756715445113,-409.94293439,0.00014073,2]
[382707536,1756715445123,-500.0,0.00014073,2]
[382707537,1756715445133,-500.0,0.00014073,2]
[382707538,1756715445142,-500.0,0.00014073,2]
[382707539,1756715445154,-500.0,0.00014073,2]
[382707540,1756715445163,-390.26996667,0.00014073,2]
[382707541,1756715445173,-500.0,0.00014073,2]
[382707542,1756715445183,-500.0,0.00014073,2]
[382707543,1756715445192,-500.0,0.00014073,2]
[382707544,1756715445202,-500.0,0.00014073,2]
[382707545,1756715445212,-151.0,0.00014073,2]
[382707546,1756715445221,-261.82785,0.00014073,2]
[382707547,1756715445231,-330.0,0.00014093,2]
[382707548,1756715445241,-330.0,0.00014093,2]
[382707549,1756715445251,-330.0,0.00014097,2]
[382707550,1756715445260,-330.0,0.00014105,2]
[382707551,1756715445270,-330.0,0.00014146,2]
[382707552,1756715445280,-330.0,0.00014148,2]
[382707553,1756715445289,-1755.5083265,0.00014159,2]
[382707554,1756715445299,-1760.0,0.00014168,2]
[382707555,1756715445308,-151.0,0.00014175,2]
[382707556,1756715445318,-500.0,0.00014175,2]
[382707557,1756715445328,-151.0,0.00014175,2]
[382707558,1756715445337,-151.0,0.00014175,2]
[382707559,1756715445347,-289.43288125,0.00014175,2]
[382707560,1756715445356,-1253.0,0.00014175,2]
[382707561,1756715445366,-619.26983923,0.00014178,2]
[382707562,1756715445376,-480.0,0.00014178,2]
[382707563,1756715445386,-480.0,0.00014178,2]
[382707564,1756715445396,-783.78,0.00014178,2]
[382707565,1756715445405,-1290.17,0.00014178,2]
[382707566,1756715445415,-480.0,0.00014178,2]
[382707568,1756715445425,-480.0,0.00014178,2]
[382707570,1756715445435,-480.0,0.00014178,2]
[382707572,1756715445446,-480.0,0.00014178,2]
[382707573,1756715445461,-480.0,0.00014178,2]
[382707574,1756715445471,-480.0,0.00014178,2]
[382707575,1756715445481,-1000.0,0.00014178,2]
[382707576,1756715445490,-1470.0,0.00014182,2]
[382707577,1756715445501,-600.0,0.00014182,2]
[382707578,1756715445511,-330.0,0.00014189,2]
[382707579,1756715445521,-1760.0,0.00014195,2]
[382707580,1756715445531,-330.0,0.00014206,2]
[382707581,1756715445540,-151.0,0.00014245,2]
[382707582,1756715445549,-500.0,0.00014245,2]
[382707583,1756715445559,-480.0,0.00014246,2]
[382707584,1756715445569,-480.0,0.00014246,2]
[382707585,1756715445579,-480.0,0.00014246,2]
[382707586,1756715445588,-480.0,0.00014246,2]
[382707588,1756715445598,-658.99,0.00014246,2]
[382707590,1756715445607,-771.36,0.00014246,2]
[382707592,1756715445617,-480.0,0.00014246,2]
[382707594,1756715445627,-480.0,0.00014246,2]
[382707596,1756715445636,-480.0,0.00014246,2]
[382707598,1756715445646,-480.0,0.00014246,2]
[382707600,1756715445656,-480.0,0.00014246,2]
[382707602,1756715445666,-479.83426198,0.00014246,2]
[382707604,1756715445676,-781.18,0.00014246,2]
[382707607,1756715445685,-600.69,0.00014246,2]
[382707609,1756715445695,-480.0,0.00014246,2]
[382707611,1756715445704,-480.0,0.00014246,2]
[382707613,1756715445716,-576.0,0.00014246,2]
[382707615,1756715445726,-480.0,0.00014246,2]
[382707617,1756715445735,-480.0,0.00014246,2]
[382707619,1756715445745,-480.0,0.00014246,2]
[382707621,1756715445756,-480.0,0.00014246,2]
[382707623,1756715445766,-282.55,0.00014246,2]
[382707625,1756715445775,-504.55,0.00014246,2]
[382707627,1756715445784,-480.0,0.00014246,2]
[382707629,1756715445794,-467.95252676,0.00014246,2]
[382707631,1756715445803,-480.0,0.00014246,2]
[382707633,1756715445813,-480.0,0.00014246,2]
[382707635,1756715445823,-189.25323783,0.00014246,2]
[382707636,1756715445832,-481.67,0.00014246,2]
[382707637,1756715445841,-615.35,0.00014246,2]
[382707639,1756715445851,-1707.93,0.00014246,2]
[382707641,1756715445861,-480.0,0.00014246,2]
[382707643,1756715445870,-493.17,0.00014246,2]
[382707645,1756715445879,-480.0,0.00014246,2]
[382707647,1756715445889,-613.45,0.00014246,2]
[382707649,1756715445899,-480.0,0.00014246,2]
[382707651,1756715445908,-480.0,0.00014246,2]
[382707653,1756715445918,-480.0,0.00014246,2]
[382707655,1756715445927,-649.59,0.00014246,2]
[382707657,1756715445936,-816.64,0.00014246,2]
[382707659,1756715445946,-880.75,0.00014246,2]
[382707661,1756715445956,-1126.43,0.00014246,2]
[382707662,1756715445967,-649.64,0.00014246,2]
[382707663,1756715445979,-480.0,0.00014246,2]
[382707664,1756715445988,-480.0,0.00014246,2]
[382707665,1756715445998,-480.0,0.00014246,2]
[382707666,1756715446009,-751.98,0.00014246,2]
[382707667,1756715446018,-480.0,0.00014246,2]
[382707668,1756715446028,-480.0,0.00014246,2]
[382707669,1756715446038,-480.0,0.00014246,2]
[382707670,1756715446047,-484.48363425,0.00014246,2]
[382707671,1756715446057,-480.0,0.00014246,2]
[382707673,1756715446066,-1758.61,0.00014246,2]
[382707674,1756715446076,-499.29,0.00014246,2]
[382707675,1756715446085,-802.95,0.00014246,2]
[382707676,1756715446095,-518.35,0.00014246,2]
[382707677,1756715446106,-484.85329817,0.00014246,2]
[382707678,1756715446116,-480.0,0.00014246,2]
[382707679,1756715446126,-480.0,0.00014246,2]
[382707680,1756715446135,-978.82,0.00014246,2]
[382707681,1756715446146,-480.0,0.00014246,2]
[382707682,1756715446155,-480.0,0.00014246,2]
[382707683,1756715446165,-623.77,0.00014246,2]
[382707684,1756715446175,-480.0,0.00014246,2]
[382707685,1756715446184,-480.0,0.00014246,2]
[382707686,1756715446194,-480.0,0.00014246,2]
[382707687,1756715446204,-480.0,0.00014246,2]
[382707688,1756715446213,-1044.86,0.00014246,2]
[382707689,1756715446223,-480.0,0.00014246,2]
[382707690,1756715446232,-480.0,0.00014246,2]
[382707691,1756715446242,-727.65,0.00014246,2]
[382707692,1756715446251,-3172.44,0.00014246,2]
[382707693,1756715446260,-480.0,0.00014246,2]
[382707694,1756715446270,-480.0,0.00014246,2]
[382707695,1756715446282,-500.0,0.00014246,2]
[382707696,1756715446294,-1013.0,0.00014259,2]
[382707697,1756715446304,-500.0,0.00014273,2]
[382707698,1756715446313,-404.10659018,0.00014273,2]
[382707699,1756715446323,-500.0,0.00014273,2]
[382707700,1756715446333,-525.08306546,0.00014273,2]
[382707701,1756715446343,-500.0,0.00014273,2]
[382707702,1756715446352,-500.0,0.00014273,2]
[382707703,1756715446361,-500.0,0.00014273,2]
[382707704,1756715446370,-500.0,0.00014273,2]
[382707705,1756715446380,-501.55060446,0.00014273,2]
[382707706,1756715446389,-500.0,0.00014273,2]
[382707707,1756715446398,-500.0,0.00014273,2]
[382707708,1756715446408,-500.0,0.00014273,2]
[382707709,1756715446418,-500.0,0.00014273,2]
[382707710,1756715446427,-500.0,0.00014273,2]
[382707711,1756715446437,-500.0,0.00014273,2]
[382707712,1756715446447,-500.0,0.00014276,2]
[382707713,1756715446457,-151.0,0.00014277,2]
[382707714,1756715446467,-330.0,0.00014277,2]
[382707715,1756715446479,-607.72,0.00014277,2]
[382707716,1756715446488,-480.0,0.00014277,2]
[382707717,1756715446497,-480.0,0.00014277,2]
[382707718,1756715446508,-480.0,0.00014277,2]
[382707719,1756715446518,-480.0,0.00014277,2]
[382707720,1756715446527,-480.0,0.00014277,2]
[382707721,1756715446537,-480.0,0.00014277,2]
[382707722,1756715446546,-480.0,0.00014277,2]
[382707723,1756715446557,-500.0,0.00014277,2]
[382707724,1756715446574,-500.0,0.00014277,2]
[382707725,1756715446583,-500.0,0.00014277,2]
[382707726,1756715446593,-151.0,0.00014277,2]
[382707727,1756715446603,-151.0,0.00014277,2]
[382707728,1756715446612,-480.0,0.00014277,2]
[382707729,1756715446621,-480.0,0.00014277,2]
[382707730,1756715446630,-480.0,0.00014277,2]
[382707731,1756715446640,-151.0,0.00014277,2]
[382707732,1756715446649,-480.0,0.00014277,2]
[382707733,1756715446658,-480.0,0.00014277,2]
[382707734,1756715446668,-480.0,0.00014277,2]
[382707735,1756715446677,-480.0,0.00014277,2]
[382707736,1756715446686,-601.47997319,0.00014277,2]
[382707737,1756715446695,-480.0,0.00014277,2]
[382707738,1756715446704,-661.59,0.00014277,2]
[382707739,1756715446714,-151.0,0.00014277,2]
[382707740,1756715446723,-480.0,0.00014277,2]
[382707741,1756715446733,-550.41954453,0.00014277,2]
[382707742,1756715446743,-608.66362371,0.00014277,2]
[382707743,1756715446753,-480.0,0.00014277,2]
[382707744,1756715446762,-480.0,0.00014277,2]
[382707745,1756715446771,-566.32,0.00014277,2]
[382707746,1756715446780,-480.0,0.00014277,2]
[382707747,1756715446790,-151.0,0.00014277,2]
[382707748,1756715446799,-480.0,0.00014277,2]
[382707749,1756715446808,-480.0,0.00014277,2]
[382707750,1756715446819,-328.4775082,0.00014277,2]
[382707751,1756715446830,-480.0,0.00014277,2]
[382707752,1756715446840,-480.0,0.00014277,2]
[382707753,1756715446849,-151.52797279,0.00014277,2]
[382707754,1756715446858,-480.0,0.00014277,2]
[382707755,1756715446868,-480.0,0.00014277,2]
[382707756,1756715446877,-782.67,0.00014277,2]
[382707757,1756715446886,-480.0,0.00014277,2]
[382707758,1756715446895,-770.74,0.00014277,2]
[382707759,1756715446905,-848.32,0.00014277,2]
[382707760,1756715446914,-480.0,0.00014277,2]
[382707761,1756715446924,-480.0,0.00014277,2]
[382707762,1756715446934,-480.0,0.00014277,2]
[382707763,1756715446943,-480.0,0.00014277,2]
[382707764,1756715446953,-480.0,0.00014277,2]
[382707765,1756715446963,-480.0,0.00014277,2]
[382707766,1756715446972,-730.25,0.00014277,2]
[382707767,1756715446982,-518.0,0.00014277,2]
[382707768,1756715446991,-480.0,0.00014277,2]
[382707769,1756715447000,-480.0,0.00014277,2]
[382707770,1756715447010,-407.6513577,0.00014277,2]
[382707771,1756715447020,-480.0,0.00014277,2]
[382707772,1756715447070,-480.0,0.00014277,2]
[382707773,1756715447081,-480.0,0.00014277,2]
[382707774,1756715447090,-480.0,0.00014277,2]
[382707775,1756715447100,-831.49,0.00014277,2]
[382707776,1756715447113,-480.0,0.00014277,2]
[382707777,1756715447123,-174.81,0.00014277,2]
[382707778,1756715447132,-480.0,0.00014277,2]
[382707779,1756715447142,-480.0,0.00014277,2]
[382707780,1756715447153,-1367.88,0.00014277,2]
[382707781,1756715447163,-794.55,0.00014277,2]
[382707782,1756715447172,-547.88,0.00014277,2]
[382707783,1756715447182,-480.0,0.00014277,2]
[382707784,1756715447191,-867.37,0.00014277,2]
[382707785,1756715447201,-480.0,0.00014277,2]
[382707786,1756715447210,-480.0,0.00014277,2]
[382707787,1756715447219,-480.0,0.00014277,2]
[382707788,1756715447229,-480.0,0.00014277,2]
[382707789,1756715447238,-480.0,0.00014277,2]
[382707790,1756715447249,-483.08954368,0.00014277,2]
[382707791,1756715447259,-842.33,0.00014277,2]
[382707792,1756715447268,-480.0,0.00014277,2]
[382707793,1756715447279,-480.0,0.00014277,2]
[382707794,1756715447289,-480.0,0.00014277,2]
[382707795,1756715447298,-480.0,0.00014277,2]
[382707796,1756715447308,-480.0,0.00014277,2]
[382707797,1756715447317,-1015.11,0.00014277,2]
[382707798,1756715447327,-796.2,0.00014277,2]
[382707799,1756715447337,-480.0,0.00014277,2]
[382707800,1756715447346,-480.0,0.00014277,2]
[382707801,1756715447356,-480.0,0.00014277,2]
[382707802,1756715447365,-480.0,0.00014277,2]
[382707803,1756715447375,-480.0,0.00014277,2]
[382707804,1756715447384,-480.0,0.00014277,2]
[382707805,1756715447393,-151.0,0.00014277,2]
[382707806,1756715447403,-537.88,0.00014277,2]
[382707807,1756715447413,-480.0,0.00014277,2]
[382707808,1756715447423,-480.0,0.00014277,2]
[382707809,1756715447432,-1051.37,0.00014277,2]
[382707810,1756715447441,-1198.79,0.00014277,2]
[382707811,1756715447451,-480.0,0.00014277,2]
[382707812,1756715447460,-480.0,0.00014277,2]
[382707813,1756715447469,-480.0,0.00014277,2]
[382707814,1756715447479,-439.02496402,0.00014277,2]
[382707815,1756715447488,-480.0,0.00014277,2]
[382707816,1756715447498,-480.0,0.00014277,2]
[382707817,1756715447507,-685.84,0.00014277,2]
[382707818,1756715447517,-4968.03,0.00014277,2]
[382707819,1756715447529,-480.0,0.00014277,2]
[382707820,1756715447539,-480.0,0.00014277,2]
[382707821,1756715447548,-480.0,0.00014277,2]
[382707822,1756715447557,-480.0,0.00014277,2]
[382707823,1756715447566,-480.0,0.00014277,2]
[382707824,1756715447575,-1140.01,0.00014277,2]
[382707825,1756715447585,-480.0,0.00014277,2]
[382707826,1756715447594,-482.94364366,0.00014277,2]
[382707827,1756715447604,-480.0,0.00014277,2]
[382707828,1756715447613,-4212.6,0.00014277,2]
[382707829,1756715447622,-754.88,0.00014277,2]
[382707830,1756715447632,-1068.24,0.00014277,2]
[382707831,1756715447641,-713.22,0.00014277,2]
[382707832,1756715447650,-1711.94,0.00014277,2]
[382707833,1756715447660,-480.0,0.00014277,2]
[382707834,1756715447670,-1496.1,0.00014277,2]
[382707835,1756715447679,-1072.53,0.00014277,2]
[382707836,1756715447689,-480.0,0.00014277,2]
[382707837,1756715447698,-998.65,0.00014277,2]
[382707838,1756715447707,-482.14397125,0.00014277,2]
[382707839,1756715447716,-4710.62,0.00014277,2]
[382707840,1756715447726,-480.0,0.00014277,2]
[382707841,1756715447736,-480.0,0.00014277,2]
[382707842,1756715447746,-482.32406535,0.00014277,2]
[382707843,1756715447756,-496.12,0.00014277,2]
[382707844,1756715447767,-2204.11,0.00014277,2]
[382707845,1756715447776,-282.23432,0.00014277,2]
[382707846,1756715447786,-538.77,0.00014277,2]
[382707847,1756715447795,-480.0,0.00014277,2]
[382707848,1756715447804,-480.0,0.00014277,2]
[382707849,1756715447814,-480.0,0.00014277,2]
[382707850,1756715447823,-480.0,0.00014277,2]
[382707851,1756715447832,-480.0,0.00014277,2]
[382707852,1756715447842,-1070.26,0.00014277,2]
[382707853,1756715447851,-480.0,0.00014277,2]
[382707854,1756715447861,-584.52,0.00014277,2]
[382707855,1756715447870,-582.13,0.00014277,2]
[382707856,1756715447880,-450.05712781,0.00014277,2]
[382707857,1756715447890,-1289.62,0.00014277,2]
[382707858,1756715447899,-2855.47,0.00014277,2]
[382707859,1756715447909,-480.0,0.00014277,2]
[382707860,1756715447918,-480.0,0.00014277,2]
[382707861,1756715447927,-480.0,0.00014277,2]
[382707862,1756715447938,-151.0,0.00014277,2]
[382707863,1756715447947,-793.457697,0.00014277,2]
[382707864,1756715447956,-964.11,0.00014278,2]
[382707865,1756715447965,-480.0,0.00014278,2]
[382707866,1756715447975,-480.0,0.00014278,2]
[382707867,1756715447983,-480.0,0.00014278,2]
[382707868,1756715447992,-480.0,0.00014278,2]
[382707869,1756715448001,-480.0,0.00014278,2]
[382707870,1756715448013,-480.0,0.00014278,2]
[382707871,1756715448022,-480.0,0.00014278,2]
[382707872,1756715448031,-480.0,0.00014278,2]
[382707873,1756715448041,-500.0,0.00014278,2]
[382707874,1756715448050,-480.0,0.00014278,2]
[382707875,1756715448060,-829.79,0.00014278,2]
[382707876,1756715448070,-480.0,0.00014278,2]
[382707877,1756715448079,-527.41,0.00014278,2]
[382707878,1756715448088,-480.0,0.00014278,2]
[382707879,1756715448098,-480.0,0.00014278,2]
[382707880,1756715448110,-480.0,0.00014278,2]
[382707881,1756715448119,-151.0,0.00014278,2]
[382707882,1756715448128,-480.0,0.00014278,2]
[382707883,1756715448138,-480.0,0.00014278,2]
[382707884,1756715448149,-439.97000437,0.00014278,2]
[382707885,1756715448158,-691.88,0.00014278,2]
[382707886,1756715448168,-480.0,0.00014278,2]
[382707887,1756715448178,-480.0,0.00014278,2]
[382707888,1756715448187,-480.0,0.00014278,2]
[382707889,1756715448197,-480.0,0.00014278,2]
[382707890,1756715448207,-480.0,0.00014278,2]
[382707891,1756715448217,-480.0,0.00014278,2]
[382707892,1756715448226,-480.0,0.00014278,2]
[382707893,1756715448236,-480.0,0.00014278,2]
[382707894,1756715448246,-480.0,0.00014278,2]
[382707895,1756715448259,-480.0,0.00014278,2]
[382707896,1756715448269,-480.0,0.00014278,2]
[382707897,1756715448279,-200.93802996,0.00014278,2]
[382707898,1756715448288,-480.0,0.00014278,2]
[382707899,1756715448298,-480.0,0.00014278,2]
[382707900,1756715448308,-608.7,0.00014278,2]
[382707901,1756715448317,-480.0,0.00014278,2]
[382707902,1756715448326,-480.0,0.00014278,2]
[382707903,1756715448337,-480.0,0.00014278,2]
[382707904,1756715448346,-832.89,0.00014278,2]
[382707905,1756715448356,-480.0,0.00014278,2]
[382707906,1756715448366,-823.14,0.00014278,2]
[382707907,1756715448375,-480.0,0.00014278,2]
[382707908,1756715448384,-925.86,0.00014278,2]
[382707909,1756715448394,-661.89,0.00014278,2]
[382707910,1756715448404,-480.0,0.00014278,2]
[382707911,1756715448414,-480.0,0.00014278,2]
[382707912,1756715448424,-480.0,0.00014278,2]
[382707913,1756715448434,-480.0,0.00014278,2]
[382707914,1756715448444,-480.0,0.00014278,2]
[382707915,1756715448454,-480.0,0.00014278,2]
[382707916,1756715448464,-480.0,0.00014278,2]
[382707917,1756715448473,-480.0,0.00014278,2]
[382707918,1756715448484,-480.0,0.00014278,2]
[382707919,1756715448494,-480.0,0.00014278,2]
[382707920,1756715448503,-480.0,0.00014278,2]
[382707921,1756715448513,-480.0,0.00014278,2]
[382707922,1756715448523,-480.0,0.00014278,2]
[382707923,1756715448533,-480.0,0.00014278,2]
[382707924,1756715448543,-480.0,0.00014278,2]
[382707925,1756715448553,-436.92971865,0.00014278,2]
[382707926,1756715448562,-480.0,0.00014278,2]
[382707927,1756715448572,-480.0,0.00014278,2]
[382707928,1756715448581,-494.09,0.00014278,2]
[382707929,1756715448591,-480.0,0.00014278,2]
[382707930,1756715448600,-480.0,0.00014278,2]
[382707931,1756715448609,-484.53,0.00014278,2]